Workbook

Sheet Stand Alone (hidden)
B1: Overslagsberegning af stand alone solcelleanlæg i Danmark
B2: Indtast værdier I de hvide felter eller brug skyderen
B3: A. Samlet dagligt energibehov | Q3: Standardværdier:
B4: Apparat: | E4: Mærkeeffekt W | G4: Brugstimer pr. døgn | K4: Energibehov I Watt-timer
B5: Lampe | E5: 10 | G5: 4 | L5: =E5*G5 -> 40 | Q5: 10 | S5: 4
B6: PC | E6: 20 | G6: 1 | L6: =E6*G6 -> 20 | Q6: 20 | S6: 1
B7: Fjernsyn | E7: 30 | G7: 4 | L7: =E7*G7 -> 120 | Q7: 30 | S7: 4
L8: =E8*G8 -> 0
B9: Samlet daglig energi: | L9: =SUM(L5:L8) -> 180 | M9: Wh
B10: B. Daglig gennemsnitlig mængde solenergi i den dimensionerende måned (Sydvendt flade, se tabel)
E11: 3 | F11: kWh/m² | Q11: 3
J12: Helårsanlæg | M12: Kun for sommerhalvår
B14: Hældning | C14: Januar | D14: Februar | E14: Marts | F14: April | G14: Maj | H14: Juni | I14: Juli | J14: August | K14: September | L14: Oktober | M14: November | N14: December
B15: 15° | C15: 0.7 | D15: 1.5 | E15: 2.4 | F15: 4.2 | G15: 5.3 | H15: 5.2 | I15: 5.5 | J15: 4.6 | K15: 3 | L15: 1,.8 | M15: 0.9 | N15: 0.5
B16: 75° | C16: 1.2 | D16: 1.9 | E16: 2.5 | F16: 3.8 | G16: 3.9 | H16: 3.6 | I16: 3.9 | J16: 3.7 | K16: 3 | L16: 2.1 | M16: 1.3 | N16: 0.8
B17: C. Forsyningssikkerhed (Antal døgn der skal kunne forsynes uden sol)
E19: 3 | F19: Døgn | I19: Ukritiske anlæg | K19: Typisk fritidsanlæg | M19: Kritisk forsyning | Q19: 3
B21: D. Batteriets afladningsdybde i forhold til nominel kapacitet
E22: 40 | F22: % | Q22: 40
I23: Startbatteri | K23: Fritidsbatteri | M23: Solarbatteri
B24: RESULTATER:
B26: Solcellemodul: | D26: =L9 -> 180 | E26: x | F26: 1.5 | G26: / | H26: =E11 -> 3 | J26: = | L26: =L9*1.5/E11 -> 90 | M26: Wpeak
D27: A | F27: (sikkerhed) | H27: B
B30: Batterikapacitet | D30: =L9 -> 180 | E30: x | F30: =E19 -> 3 | G30: / | H30: =E22/100 -> 0.4 | J30: = | L30: =L9*E19*100/E22 -> 1350 | M30: Wh
D31: A | F31: C | H31: D | L31: =L30/12 -> 112.5 | M31: Ah(12V)

Sheet Nettilsluttet
B1: NETTILSLUTTET SOLCELLEANLÆG I DANMARK | Q1: Introduktion Nettilsluttede solcelleanlæg forsyner det normale elnet med solstrøm via en vekselretter. Anlæggene vil ofte være monteret på en eksisterende bygning, hvad der bestemmer solcellernes hældning og orientering. Ved tryk på indtastningsfelterne fremkommer uddybende hjælpetekster i feltet herunder. Ved tryk på "Typiske værdier" indsættes data for et typisk anlæg til et enfamiliehus i input-felterne. Resultaterne er typiske værdier. I praksis forekommer afvigelser på grund af de lokale indbygnings- og installationsforhold
B2: Indtast værdier nedenfor eller brug skyderen
B3: Se i feltet nederst til højre for at få en forklaring
B5: Input:
B7: Samlet modulareal | F7: 40 | G7: m² | N7: <== | O7: 40
B10: Hældning fra vandret | F10: 30 | G10: Grader | N10: <== | O10: 30
H11: Vandret | M11: Lodret
B13: Afvigelse fra syd(0-90) | F13: 0 | G13: Grader | N13: <== | O13: 0
H14: Syd | M14: Øst/vest
J15: Solcelletype:
B16: Modulvirkningsgrad | F16: 4 | G16: % | N16: <== | O16: 14
H17: Tyndfilm Multi-X Mono-X Avancerede
Q18: Vejledning til input
B19: Systemfaktor | F19: 85 | G19: % | N19: <== | O19: 85 | Q19: Modulareal:
I20: Ringe | J20: typisk | K20: typisk | L20: Ideel | Q20: Samlet solcelleareal incl kanter og mellemrum mellem cellerne men excl areal mellem modulerne
B22: Resultater:
B24: Beregnet ydelse år 1 | F24: =+F31*F7*F16*F19/10000 -> 1564.52224 | G24: kWh | I24: Leveret til el-nettet pr. år
F25: =+F24/F7 -> 39.113056 | G25: kWh/m² | I25: Ydelse per arealenhed
F26: =F24/F29 -> 977.8264 | G26: kWh/kWpeak | I26: Ydelse i forhold til installeret solcelleeffekt
F27: =F26*100/1160 -> 84.29537931 | G27: % | I27: Ydelse i forhold til idealanlæg
B29: Installeret solcelleeffekt | F29: =+F7*F16/100 -> 1.6 | G29: kWpeak
B31: Indstråling på den aktuelle flade | F31: =F13*F13*(F10*F10*0.00000846 - 0.00108*F10 + 0.000207)+F13*(0.00003*F10*F10 - 0.003*F10 - 0.0019)-0.1043*F10*F10 + 8.2598*F10 + 996.46 -> 1150.384 | G31: kWh/m² | H31: =F31*100/1160 -> 99.17103448 | I31: % af indstråling ved ideel placering
